fUST/lending_fUST_20250729
["ID","MTS","AMOUNT","RATE_DAILY","PERIOD"]
[375747633,1753728658494,-460.0,0.00022191,2]
[375747635,1753728658503,-669.61,0.00022191,2]
[375747637,1753728658513,-460.0,0.00022191,2]
[375747639,1753728658522,-460.0,0.00022191,2]
[375747641,1753728658531,-460.0,0.00022191,2]
[375747643,1753728658541,-460.0,0.00022191,2]
[375747645,1753728658550,-460.0,0.00022191,2]
[375747647,1753728658559,-500.0,0.00022191,2]
[375747649,1753728658569,-4529.8,0.00022191,2]
[375747651,1753728658578,-653.77,0.00022191,2]
[375747654,1753728658588,-460.0,0.00022191,2]
[375747656,1753728658599,-460.0,0.00022191,2]
[375747658,1753728658608,-1040.96,0.00022191,2]
[375747660,1753728658617,-460.0,0.00022191,2]
[375747661,1753728658627,-397.90012525,0.00022191,2]
[375747663,1753728658636,-737.77,0.00022191,2]
[375747666,1753728658645,-460.0,0.00022191,2]
[375747668,1753728658654,-889.54,0.00022191,2]
[375747669,1753728658663,-1631.04,0.00022191,2]
[375747671,1753728658672,-663.68,0.00022191,2]
[375747673,1753728658682,-460.0,0.00022191,2]
[375747676,1753728658691,-571.78,0.00022191,2]
[375747677,1753728658700,-460.0,0.00022191,2]
[375747679,1753728658709,-460.0,0.00022191,2]
[375747681,1753728658719,-460.0,0.00022191,2]
[375747683,1753728658728,-460.0,0.00022191,2]
[375747685,1753728658738,-2206.83,0.00022191,2]
[375747687,1753728658747,-460.0,0.00022191,2]
[375747689,1753728658757,-2652.51,0.00022191,2]
[375747691,1753728658766,-460.0,0.00022191,2]
[375747693,1753728658775,-586.34,0.00022191,2]
[375747695,1753728658784,-2020.25,0.00022191,2]
[375747697,1753728658794,-460.0,0.00022191,2]
[375747699,1753728658805,-460.0,0.00022191,2]
[375747712,1753728658911,-460.0,0.00022191,2]
[375747714,1753728658921,-721.07,0.00022191,2]
[375747716,1753728658930,-1809.26,0.00022191,2]
[375747718,1753728658940,-578.54,0.00022191,2]
[375747720,1753728658949,-3123.56,0.00022191,2]
[375747722,1753728658958,-502.28,0.00022191,2]
[375747724,1753728658967,-460.0,0.00022191,2]
[375747726,1753728658977,-1869.87,0.00022191,2]
[375747728,1753728658986,-460.0,0.00022191,2]
[375747730,1753728658995,-514.36,0.00022191,2]
[375747732,1753728659008,-568.64,0.00022191,2]
[375747734,1753728659018,-713.15,0.00022191,2]
[375747736,1753728659028,-1983.84,0.00022191,2]
[375747738,1753728659038,-1636.44,0.00022191,2]
[375747740,1753728659048,-2799.18,0.00022191,2]
[375747742,1753728659057,-643.74,0.00022191,2]
[375747744,1753728659066,-510.82,0.00022191,2]
[375747746,1753728659076,-1672.09,0.00022191,2]
[375747747,1753728659086,-606.87162102,0.00022191,2]
[375747750,1753728659097,-6580.44,0.00022191,2]
[375747752,1753728659107,-730.72,0.00022191,2]
[375747754,1753728659116,-605.7,0.00022191,2]
[375747756,1753728659125,-460.0,0.00022191,2]
[375747758,1753728659135,-516.51,0.00022191,2]
[375747759,1753728659144,-460.0,0.00022191,2]
[375747761,1753728659153,-726.82,0.00022191,2]
[375747763,1753728659162,-607.14,0.00022191,2]
[375747765,1753728659174,-892.16,0.00022191,2]
[375747767,1753728659184,-1833.0,0.00022231,2]
[375747770,1753728659194,-495.6,0.00022291,4]
[375747771,1753728659203,-1833.0,0.000223,2]
[375747773,1753728659213,-179.73040439,0.00022396,2]
[375747775,1753728659222,-1833.0,0.00022419,2]
[375747777,1753728659233,-460.0,0.00022465,2]
[375747779,1753728659242,-460.0,0.00022465,2]
[375747781,1753728659251,-529.63,0.00022465,2]
[375747783,1753728659260,-460.0,0.00022465,2]
[375747785,1753728659269,-669.61,0.00022465,2]
[375747787,1753728659278,-460.0,0.00022465,2]
[375747789,1753728659287,-460.0,0.00022465,2]
[375747791,1753728659296,-460.0,0.00022465,2]
[375747793,1753728659305,-460.0,0.00022465,2]
[375747795,1753728659314,-460.0,0.00022465,2]
[375747797,1753728659324,-500.0,0.00022465,2]
[375747799,1753728659333,-4529.8,0.00022465,2]
[375747801,1753728659343,-653.77,0.00022465,2]
[375747803,1753728659353,-460.0,0.00022465,2]
[375747805,1753728659362,-467.27,0.00022465,2]
[375747807,1753728659371,-1040.96,0.00022465,2]
[375747809,1753728659380,-737.77,0.00022465,2]
[375747811,1753728659389,-460.0,0.00022465,2]
[375747813,1753728659398,-889.54,0.00022465,2]
[375747814,1753728659407,-1631.04,0.00022465,2]
[375747815,1753728659416,-663.68,0.00022465,2]
[375747816,1753728659424,-460.0,0.00022465,2]
[375747817,1753728659434,-571.78,0.00022465,2]
[375747818,1753728659443,-460.0,0.00022465,2]
[375747819,1753728659452,-460.0,0.00022465,2]
[375747820,1753728659461,-460.0,0.00022465,2]
[375747821,1753728659471,-2206.83,0.00022465,2]
[375747822,1753728659480,-460.0,0.00022465,2]
[375747823,1753728659489,-2652.51,0.00022465,2]
[375747824,1753728659498,-460.0,0.00022465,2]
[375747826,1753728659507,-460.0,0.00022465,2]
[375747827,1753728659516,-586.34,0.00022465,2]
[375747829,1753728659525,-2020.25,0.00022465,2]
[375747830,1753728659535,-460.0,0.00022465,2]
[375747832,1753728659544,-460.0,0.00022465,2]
[375747834,1753728659553,-460.0,0.00022465,2]
[375747836,1753728659562,-721.07,0.00022465,2]
[375747838,1753728659572,-1809.26,0.00022465,2]
[375747840,1753728659581,-578.54,0.00022465,2]
[375747842,1753728659590,-3123.56,0.00022465,2]
[375747844,1753728659601,-502.28,0.00022465,2]
[375747846,1753728659610,-460.0,0.00022465,2]
[375747848,1753728659620,-1869.87,0.00022465,2]
[375747850,1753728659629,-460.0,0.00022465,2]
[375747852,1753728659639,-514.36,0.00022465,2]
[375747854,1753728659648,-568.64,0.00022465,2]
[375747856,1753728659657,-713.15,0.00022465,2]
[375747858,1753728659667,-1983.84,0.00022465,2]
[375747860,1753728659676,-1636.44,0.00022465,2]
[375747862,1753728659685,-2799.18,0.00022465,2]
[375747864,1753728659695,-643.74,0.00022465,2]
[375747866,1753728659704,-510.82,0.00022465,2]
[375747868,1753728659713,-1672.09,0.00022465,2]
[375747870,1753728659723,-730.72,0.00022465,2]
[375747872,1753728659732,-6580.44,0.00022465,2]
[375747874,1753728659741,-605.7,0.00022465,2]
[375747876,1753728659751,-460.0,0.00022465,2]
[375747878,1753728659760,-516.51,0.00022465,2]
[375747880,1753728659769,-460.0,0.00022465,2]
[375747882,1753728659778,-726.82,0.00022465,2]
[375747884,1753728659787,-892.16,0.00022465,2]
[375747886,1753728659797,-1003.59439869,0.00022466,2]
[375747887,1753728659806,-151.0,0.0002249,7]
[375747889,1753728659815,-203.173675,0.0002249,7]
[375747891,1753728659824,-151.0,0.0002249,7]
[375747893,1753728659834,-1833.0,0.00022511,2]
[375747895,1753728659844,-1833.0,0.00022522,2]
[375747897,1753728659853,-1500.0,0.00022525,2]
[375747900,1753728659864,-3871.6010581,0.00022557,2]
[375747901,1753728659874,-430.064903,0.00022575,2]
[375747903,1753728659883,-309.915118,0.00022603,2]
[375747905,1753728659893,-560.0,0.00022633,2]
[375747907,1753728659903,-495.6,0.00022663,5]
[375747909,1753728659912,-2159.0,0.00022707,2]
[375747911,1753728659922,-972.678,0.00022707,2]
[375747913,1753728659931,-233.04724231,0.00022739,2]
[375747915,1753728659941,-529.63,0.00022739,2]
[375747917,1753728659951,-669.61,0.00022739,2]
[375747919,1753728659961,-460.0,0.00022739,2]
[375747921,1753728659970,-460.0,0.00022739,2]
[375747923,1753728659979,-500.0,0.00022739,2]
[375747925,1753728659988,-4529.8,0.00022739,2]
[375747927,1753728659998,-653.77,0.00022739,2]
[375747929,1753728660009,-460.0,0.00022739,2]
[375747931,1753728660019,-1040.96,0.00022739,2]
[375747933,1753728660029,-737.77,0.00022739,2]
[375747935,1753728660038,-460.0,0.00022739,2]
[375747937,1753728660050,-889.54,0.00022739,2]
[375747939,1753728660060,-1631.04,0.00022739,2]
[375747941,1753728660070,-663.68,0.00022739,2]
[375747943,1753728660081,-460.0,0.00022739,2]
[375747945,1753728660091,-571.78,0.00022739,2]
[375747948,1753728660102,-460.0,0.00022739,2]
[375747950,1753728660111,-460.0,0.00022739,2]
[375747952,1753728660121,-460.0,0.00022739,2]
[375747953,1753728660130,-460.0,0.00022739,2]
[375747955,1753728660140,-2206.83,0.00022739,2]
[375747957,1753728660149,-2652.51,0.00022739,2]
[375747959,1753728660159,-460.0,0.00022739,2]
[375747961,1753728660170,-460.0,0.00022739,2]
[375747963,1753728660180,-586.34,0.00022739,2]
[375747965,1753728660190,-2020.25,0.00022739,2]
[375747967,1753728660199,-460.0,0.00022739,2]
[375747968,1753728660210,-460.0,0.00022739,2]
[375747970,1753728660220,-460.0,0.00022739,2]
[375747972,1753728660230,-721.07,0.00022739,2]
[375747974,1753728660239,-1809.26,0.00022739,2]
[375747976,1753728660248,-578.54,0.00022739,2]
[375747978,1753728660258,-3123.56,0.00022739,2]
[375747980,1753728660269,-502.28,0.00022739,2]
[375747982,1753728660279,-460.0,0.00022739,2]
[375747984,1753728660288,-1869.87,0.00022739,2]
[375747986,1753728660298,-460.0,0.00022739,2]
[375747988,1753728660307,-514.36,0.00022739,2]
[375747989,1753728660316,-568.64,0.00022739,2]
[375747991,1753728660326,-713.15,0.00022739,2]
[375747993,1753728660336,-1983.84,0.00022739,2]
[375747995,1753728660347,-1636.44,0.00022739,2]
[375747997,1753728660356,-2799.18,0.00022739,2]
[375747999,1753728660366,-643.74,0.00022739,2]
[375748001,1753728660375,-510.82,0.00022739,2]
[375748003,1753728660385,-1672.09,0.00022739,2]
[375748005,1753728660394,-730.72,0.00022739,2]
[375748007,1753728660404,-6580.44,0.00022739,2]
[375748009,1753728660413,-605.7,0.00022739,2]
[375748011,1753728660423,-460.0,0.00022739,2]
[375748013,1753728660432,-460.0,0.00022739,2]
[375748015,1753728660441,-516.51,0.00022739,2]
[375748017,1753728660450,-726.82,0.00022739,2]
[375748018,1753728660459,-892.16,0.00022739,2]
[375748020,1753728660469,-189.988435,0.00022762,4]
[375748022,1753728660478,-907.63868719,0.0002284,10]
[375748024,1753728660488,-3375.9737256,0.0002289,2]
[375748026,1753728660497,-189.988435,0.0002295,2]
[375748028,1753728660506,-1491.97,0.00023,2]
[375748030,1753728660515,-160.0,0.00023,2]
[375748032,1753728660525,-227.64,0.00023,2]
[375748034,1753728660535,-529.63,0.00023013,2]
[375748036,1753728660544,-669.61,0.00023013,2]
[375748038,1753728660554,-460.0,0.00023013,2]
[375748040,1753728660563,-509.37948221,0.00023013,2]
[375748042,1753728660573,-4529.8,0.00023013,2]
[375748044,1753728660582,-653.77,0.00023013,2]
[375748046,1753728660591,-460.0,0.00023013,2]
[375748048,1753728660604,-1040.96,0.00023013,2]
[375748049,1753728660613,-737.77,0.00023013,2]
[375748051,1753728660623,-460.0,0.00023013,2]
[375748053,1753728660632,-889.54,0.00023013,2]
[375748055,1753728660642,-1631.04,0.00023013,2]
[375748057,1753728660654,-663.68,0.00023013,2]
[375748059,1753728660663,-460.0,0.00023013,2]
[375748061,1753728660673,-571.78,0.00023013,2]
[375748063,1753728660683,-460.0,0.00023013,2]
[375748065,1753728660692,-460.0,0.00023013,2]
[375748067,1753728660702,-191.25,0.00023013,2]
[375748077,1753728660711,-460.0,0.00023013,2]
[375748079,1753728660809,-2206.83,0.00023013,2]
[375748081,1753728660818,-2652.51,0.00023013,2]
[375748083,1753728660828,-171.08,0.00023013,2]
[375748085,1753728660841,-460.0,0.00023013,2]
[375748087,1753728660854,-586.34,0.00023013,2]
[375748089,1753728660864,-2020.25,0.00023013,2]
[375748091,1753728660873,-460.0,0.00023013,2]
[375748093,1753728660883,-460.0,0.00023013,2]
[375748095,1753728660892,-460.0,0.00023013,2]
[375748096,1753728660902,-721.07,0.00023013,2]
[375748098,1753728660912,-1809.26,0.00023013,2]
[375748100,1753728660921,-578.54,0.00023013,2]
[375748102,1753728660932,-3123.56,0.00023013,2]
[375748104,1753728660941,-502.28,0.00023013,2]
[375748106,1753728660951,-460.0,0.00023013,2]
[375748108,1753728660961,-1869.87,0.00023013,2]
[375748110,1753728660970,-460.0,0.00023013,2]
[375748112,1753728660980,-514.36,0.00023013,2]
[375748114,1753728660989,-568.64,0.00023013,2]
[375748116,1753728661000,-713.15,0.00023013,2]
[375748118,1753728661011,-1983.84,0.00023013,2]
[375748120,1753728661020,-1636.44,0.00023013,2]
[375748122,1753728661031,-2799.18,0.00023013,2]
[375748124,1753728661042,-643.74,0.00023013,2]
[375748126,1753728661051,-510.82,0.00023013,2]
[375748128,1753728661063,-1672.09,0.00023013,2]
[375748130,1753728661072,-6580.44,0.00023013,2]
[375748132,1753728661084,-605.7,0.00023013,2]
[375748134,1753728661094,-730.72,0.00023013,2]
[375748136,1753728661104,-460.0,0.00023013,2]
[375748137,1753728661114,-460.0,0.00023013,2]
[375748139,1753728661123,-516.51,0.00023013,2]
[375748141,1753728661133,-726.82,0.00023013,2]
[375748143,1753728661143,-892.16,0.00023013,2]
[375748145,1753728661152,-151.0,0.00023014,7]
[375748147,1753728661162,-197.0,0.00023014,7]
[375748149,1753728661171,-3871.6010581,0.00023024,2]
[375748151,1753728661181,-1833.0,0.00023032,2]
[375748153,1753728661191,-495.6,0.00023036,5]
[375748155,1753728661201,-884.98962815,0.00023069,10]
[375748157,1753728661211,-1156.1801546,0.00023096,2]
[375748159,1753728661220,-1528.51,0.000231,7]
[375748161,1753728661230,-189.988435,0.0002312,5]
[375748163,1753728661240,-578.0900773,0.00023123,2]
[375748165,1753728661249,-578.0900773,0.00023123,2]
[375748167,1753728661259,-578.0900773,0.00023123,2]
[375748169,1753728661269,-660.0,0.00023181,2]
[375748171,1753728661279,-1000.0,0.00023193,5]
[375748173,1753728661290,-13614.55,0.000232,7]
[375748175,1753728661299,-3217.67,0.000232,7]
[375748177,1753728661309,-51814.44,0.000232,2]
[375748178,1753728661319,-503.81332379,0.00023201,8]
[375748180,1753728661330,-385.84525188,0.00023207,2]
[375748182,1753728661339,-1833.0,0.0002322,2]
[375748184,1753728661351,-500.0,0.0002323,8]
[375748186,1753728661361,-3375.9737256,0.00023261,2]
[375748188,1753728661371,-529.63,0.00023287,2]
[375748190,1753728661380,-669.61,0.00023287,2]
[375748192,1753728661389,-299.78599663,0.00023287,2]
[375748194,1753728661399,-4529.8,0.00023287,2]
[375748196,1753728661408,-653.77,0.00023287,2]
[375748198,1753728661417,-460.0,0.00023287,2]
[375748199,1753728661426,-1040.96,0.00023287,2]
[375748201,1753728661436,-737.77,0.00023287,2]
[375748203,1753728661445,-460.0,0.00023287,2]
[375748205,1753728661455,-889.54,0.00023287,2]
[375748207,1753728661464,-1631.04,0.00023287,2]
[375748209,1753728661473,-663.68,0.00023287,2]
[375748211,1753728661482,-460.0,0.00023287,2]
[375748213,1753728661492,-571.78,0.00023287,2]
[375748215,1753728661501,-460.0,0.00023287,2]
[375748217,1753728661510,-460.0,0.00023287,2]
[375748219,1753728661520,-460.0,0.00023287,2]
[375748221,1753728661529,-2206.83,0.00023287,2]
[375748223,1753728661539,-2652.51,0.00023287,2]
[375748225,1753728661549,-460.0,0.00023287,2]
[375748227,1753728661558,-586.34,0.00023287,2]
[375748229,1753728661568,-2020.25,0.00023287,2]
[375748231,1753728661577,-460.0,0.00023287,2]
[375748233,1753728661586,-516.1,0.00023287,2]
[375748235,1753728661599,-460.0,0.00023287,2]
[375748237,1753728661608,-721.07,0.00023287,2]
[375748239,1753728661617,-1809.26,0.00023287,2]
[375748241,1753728661627,-578.54,0.00023287,2]
[375748242,1753728661636,-3123.56,0.00023287,2]
[375748244,1753728661646,-500.0,0.00023287,2]
[375748246,1753728661655,-502.28,0.00023287,2]
[375748248,1753728661665,-460.0,0.00023287,2]
[375748250,1753728661675,-1869.87,0.00023287,2]
[375748252,1753728661685,-460.0,0.00023287,2]
[375748254,1753728661694,-514.36,0.00023287,2]
[375748256,1753728661704,-568.64,0.00023287,2]
[375748258,1753728661714,-713.15,0.00023287,2]
[375748260,1753728661724,-1983.84,0.00023287,2]
[375748262,1753728661733,-1636.44,0.00023287,2]
[375748264,1753728661743,-643.74,0.00023287,2]
[375748265,1753728661752,-2799.18,0.00023287,2]
[375748266,1753728661761,-510.82,0.00023287,2]
[375748267,1753728661771,-1672.09,0.00023287,2]
[375748268,1753728661780,-6580.44,0.00023287,2]
[375748269,1753728661789,-605.7,0.00023287,2]
[375748270,1753728661798,-730.72,0.00023287,2]
[375748271,1753728661807,-434.06559774,0.00023287,2]
[375748272,1753728661816,-460.0,0.00023287,2]
[375748273,1753728661825,-516.51,0.00023287,2]
[375748274,1753728661834,-726.82,0.00023287,2]
[375748275,1753728661843,-892.16,0.00023287,2]
[375748276,1753728661854,-2200.0,0.00023305,2]
[375748277,1753728661864,-227.64,0.0002337,2]
[375748278,1753728661874,-495.6,0.00023409,5]
[375748279,1753728661883,-266.9,0.00023423,2]
[375748280,1753728661893,-3375.9737256,0.00023464,2]
[375748281,1753728661903,-3871.6010581,0.0002349,2]
[375748282,1753728661913,-189.988435,0.00023513,5]
[375748283,1753728661922,-189.988435,0.00023525,4]
[375748284,1753728661933,-430.064903,0.00023534,2]
[375748285,1753728661943,-430.064903,0.00023534,2]
[375748286,1753728661952,-430.064903,0.00023534,2]
[375748287,1753728661961,-430.064903,0.00023534,2]
[375748288,1753728661970,-939.4590986,0.00023534,2]
[375748289,1753728661979,-430.064903,0.00023534,2]
[375748290,1753728661989,-1060.592493,0.00023561,7]
[375748291,1753728661999,-1060.592493,0.00023561,7]
[375748292,1753728662011,-529.63,0.00023561,2]
[375748293,1753728662021,-669.61,0.00023561,2]
[375748294,1753728662030,-4529.8,0.00023561,2]
[375748295,1753728662039,-653.77,0.00023561,2]
[375748296,1753728662050,-460.0,0.00023561,2]
[375748297,1753728662059,-1040.96,0.00023561,2]
[375748298,1753728662068,-737.77,0.00023561,2]
[375748299,1753728662079,-460.0,0.00023561,2]
[375748300,1753728662089,-889.54,0.00023561,2]
[375748301,1753728662100,-1631.04,0.00023561,2]
[375748302,1753728662109,-663.68,0.00023561,2]
[375748303,1753728662119,-394.4877746,0.00023561,2]
[375748304,1753728662128,-571.78,0.00023561,2]
[375748305,1753728662138,-460.0,0.00023561,2]
[375748306,1753728662147,-460.0,0.00023561,2]
[375748307,1753728662156,-460.0,0.00023561,2]
[375748308,1753728662166,-2206.83,0.00023561,2]
[375748309,1753728662175,-2652.51,0.00023561,2]
[375748311,1753728662186,-460.0,0.00023561,2]
[375748313,1753728662195,-586.34,0.00023561,2]
[375748315,1753728662205,-2020.25,0.00023561,2]
[375748317,1753728662215,-460.0,0.00023561,2]
[375748319,1753728662224,-460.0,0.00023561,2]
[375748321,1753728662234,-721.07,0.00023561,2]
[375748323,1753728662244,-1809.26,0.00023561,2]
[375748325,1753728662254,-578.54,0.00023561,2]
[375748327,1753728662263,-3123.56,0.00023561,2]
[375748329,1753728662272,-502.28,0.00023561,2]
[375748331,1753728662282,-460.0,0.00023561,2]
[375748333,1753728662291,-1869.87,0.00023561,2]
[375748335,1753728662300,-460.0,0.00023561,2]
[375748337,1753728662310,-514.36,0.00023561,2]
[375748338,1753728662319,-568.64,0.00023561,2]
[375748340,1753728662329,-713.15,0.00023561,2]
[375748342,1753728662338,-1983.84,0.00023561,2]
[375748344,1753728662349,-1636.44,0.00023561,2]
[375748346,1753728662359,-643.74,0.00023561,2]
[375748348,1753728662368,-510.82,0.00023561,2]
[375748350,1753728662378,-2799.18,0.00023561,2]
[375748352,1753728662388,-1672.09,0.00023561,2]
[375748354,1753728662398,-6580.44,0.00023561,2]
[375748356,1753728662407,-730.72,0.00023561,2]
[375748358,1753728662416,-605.7,0.00023561,2]
[375748360,1753728662426,-460.0,0.00023561,2]
[375748362,1753728662436,-516.51,0.00023561,2]
[375748364,1753728662444,-726.82,0.00023561,2]
[375748366,1753728662453,-892.16,0.00023561,2]
[375748368,1753728662462,-430.064903,0.00023562,2]
[375748370,1753728662471,-430.064903,0.00023562,2]
[375748372,1753728662482,-430.064903,0.00023562,2]
[375748382,1753728662577,-430.064903,0.00023562,2]
[375748384,1753728662586,-430.064903,0.00023562,2]
[375748386,1753728662595,-859.5801674,0.00023562,2]
[375748388,1753728662608,-200.0,0.00023578,15]
[375748390,1753728662619,-200.0,0.00023578,15]
[375748392,1753728662628,-200.0,0.00023578,15]
[375748394,1753728662638,-200.0,0.00023578,15]
[375748396,1753728662647,-200.0,0.00023578,15]
[375748398,1753728662656,-200.0,0.00023578,15]
[375748399,1753728662666,-366.0,0.00023578,15]
[375748401,1753728662675,-811.43970814,0.00023639,2]
[375748403,1753728662685,-153.0,0.00023699,2]
[375748405,1753728662695,-150.0,0.00023717,2]
[375748407,1753728662704,-800.0,0.00023718,2]
[375748409,1753728662714,-760.0,0.00023729,2]
[375748411,1753728662724,-800.0,0.00023773,2]
[375748413,1753728662733,-495.6,0.00023782,6]
[375748415,1753728662742,-1000.0,0.000238,2]
[375748417,1753728662751,-227.64,0.00023804,2]
[375748419,1753728662761,-3375.9737257,0.00023806,2]
[375748421,1753728662771,-151.0,0.00023835,7]
[375748423,1753728662780,-151.0,0.00023835,7]
[375748425,1753728662788,-151.0,0.00023835,7]
[375748426,1753728662798,-151.0,0.00023835,7]
[375748428,1753728662806,-341.717036,0.00023835,7]
[375748430,1753728662816,-341.717036,0.00023835,7]
[375748432,1753728662825,-302.816509,0.00023835,7]
[375748434,1753728662834,-302.816509,0.00023835,7]
[375748436,1753728662843,-171.685656,0.00023835,7]
[375748438,1753728662857,-171.685656,0.00023835,7]
[375748440,1753728662866,-529.63,0.00023835,2]
[375748442,1753728662875,-669.61,0.00023835,2]
[375748444,1753728662885,-4529.8,0.00023835,2]
[375748446,1753728662894,-653.77,0.00023835,2]
[375748448,1753728662903,-460.0,0.00023835,2]
[375748449,1753728662912,-1040.96,0.00023835,2]
[375748451,1753728662921,-737.77,0.00023835,2]
[375748453,1753728662930,-460.0,0.00023835,2]
[375748455,1753728662940,-889.54,0.00023835,2]
[375748457,1753728662949,-1631.04,0.00023835,2]
[375748459,1753728662959,-663.68,0.00023835,2]
[375748461,1753728662969,-571.78,0.00023835,2]
[375748463,1753728662978,-460.0,0.00023835,2]
[375748465,1753728662988,-460.0,0.00023835,2]
[375748467,1753728662998,-357.43121217,0.00023835,2]
[375748469,1753728663010,-2206.83,0.00023835,2]
[375748470,1753728663019,-2652.51,0.00023835,2]
[375748472,1753728663029,-460.0,0.00023835,2]
[375748474,1753728663039,-586.34,0.00023835,2]
[375748476,1753728663050,-2020.25,0.00023835,2]
[375748478,1753728663060,-172.00771924,0.00023835,2]
[375748480,1753728663070,-460.0,0.00023835,2]
[375748482,1753728663080,-721.07,0.00023835,2]
[375748484,1753728663090,-1809.26,0.00023835,2]
[375748486,1753728663102,-578.54,0.00023835,2]
[375748488,1753728663112,-3123.56,0.00023835,2]
[375748490,1753728663122,-502.28,0.00023835,2]
[375748492,1753728663131,-1869.87,0.00023835,2]
[375748494,1753728663141,-460.0,0.00023835,2]
[375748495,1753728663150,-460.0,0.00023835,2]
[375748497,1753728663160,-514.36,0.00023835,2]
[375748499,1753728663169,-568.64,0.00023835,2]
[375748501,1753728663178,-713.15,0.00023835,2]
[375748503,1753728663188,-1983.84,0.00023835,2]
[375748505,1753728663197,-1636.44,0.00023835,2]
[375748507,1753728663207,-643.74,0.00023835,2]
[375748509,1753728663216,-510.82,0.00023835,2]
[375748511,1753728663225,-2799.18,0.00023835,2]
[375748513,1753728663234,-1672.09,0.00023835,2]
[375748514,1753728663243,-6580.44,0.00023835,2]
[375748516,1753728663253,-730.72,0.00023835,2]
[375748518,1753728663263,-605.7,0.00023835,2]
[375748520,1753728663273,-460.0,0.00023835,2]
[375748522,1753728663283,-516.51,0.00023835,2]
[375748524,1753728663292,-726.82,0.00023835,2]
[375748526,1753728663302,-252.58279,0.000239,7]
[375748528,1753728663311,-151.0,0.000239,7]
[375748530,1753728663320,-151.0,0.000239,7]
[375748532,1753728663329,-763.42922978,0.000239,2]
[375748534,1753728663338,-189.988435,0.00023906,5]
[375748536,1753728663348,-752.14,0.00023908,5]
[375748538,1753728663358,-250.0,0.0002391,2]
[375748540,1753728663367,-153.0,0.00023918,2]
[375748541,1753728663376,-153.0,0.00023918,2]
[375748543,1753728663386,-153.0,0.00023918,2]
[375748545,1753728663395,-153.0,0.00023918,2]
[375748547,1753728663404,-153.0,0.00023918,2]
[375748549,1753728663413,-153.0,0.00023918,2]
[375748551,1753728663422,-153.0,0.00023918,2]
[375748553,1753728663432,-153.0,0.00023918,2]
[375748554,1753728663441,-153.0,0.00023918,2]
[375748556,1753728663450,-153.0,0.00023918,2]
[375748558,1753728663459,-153.0,0.00023918,2]
[375748560,1753728663468,-153.0,0.00023918,2]
[375748562,1753728663477,-153.0,0.00023918,2]
[375748564,1753728663486,-153.0,0.00023918,2]
[375748566,1753728663495,-153.0,0.00023918,2]
[375748568,1753728663505,-189.988435,0.00023925,2]
[375748569,1753728663514,-578.0900773,0.00023945,2]
[375748571,1753728663523,-578.0900773,0.00023945,2]
[375748573,1753728663532,-575.9134983,0.00023945,2]
[375748575,1753728663541,-578.0900773,0.00023945,2]
[375748577,1753728663551,-3871.6010581,0.00023956,2]
[375748579,1753728663560,-150.0,0.00023998,30]